bitfinex/quotes_SOLUSD_20250929
["timestamp","ask_amount","ask_price","bid_price","bid_amount"]
[1759174750360,0.1,212.13,212.08,13.59559401]
[1759174750568,0.66,212.12,212.09,4.71496167]
[1759174750770,0.66,212.11,212.1,33.34]
[1759174750969,3.43100238,212.12,212.1,33.34]
[1759174751344,4.09100238,212.12,212.1,33.34]
[1759174752462,3.43100238,212.12,212.1,38.05459166]
[1759174752861,3.43100238,212.12,212.11,33.34]
[1759174753245,0.1,212.13,212.11,33.34]
[1759174753465,0.1,212.13,212.11,34.03]
[1759174753657,0.1,212.13,212.12,14.28559401]
[1759174754444,0.1,212.13,212.12,18.30990666]
[1759174755062,0.1,212.13,212.12,18.98990666]
[1759174755272,0.1,212.13,212.12,18.30990666]
[1759174756784,0.1,212.13,212.12,51.62990666]
[1759174759366,0.1,212.13,212.12,18.30990666]
[1759174759562,0.1,212.13,212.12,51.62990666]
[1759174761881,0.1,212.13,212.12,18.30990666]
[1759174762076,0.1,212.13,212.12,51.62990666]
[1759174762275,0.1,212.13,212.12,52.33990666]
[1759174764282,0.1,212.13,212.12,51.62990666]
[1759174764664,0.1,212.13,212.12,52.33990666]
[1759174765860,0.1,212.13,212.12,52.62390666]
[1759174766703,0.1,212.13,212.12,52.76606823]
[1759174767000,0.1,212.13,212.12,51.88890666]
[1759174767174,0.81,212.13,212.12,0.284]
[1759174767493,0.81,212.13,212.12,33.604]
[1759174767678,0.81,212.13,212.12,0.284]
[1759174768178,0.1,212.13,212.12,4.99831265]
[1759174769287,0.81,212.13,212.12,0.284]
[1759174770586,0.1,212.13,212.12,4.99831265]
[1759174770977,0.1,212.13,212.12,0.284]
[1759174771578,0.81,212.13,212.12,0.284]
[1759174772774,31.52409041,212.13,212.12,0.284]
[1759174773288,29.00426094,212.13,212.12,0.284]
[1759174773493,0.81,212.13,212.12,0.284]
[1759174774380,0.1,212.13,212.12,0.284]
[1759174778872,5.52409041,212.13,212.12,0.284]
[1759174780997,0.81,212.13,212.12,0.284]
[1759174781174,0.1,212.13,212.12,0.284]
[1759174782072,0.1,212.13,212.12,5.70831265]
[1759174782279,0.1,212.13,212.12,0.994]
[1759174782486,0.1,212.13,212.12,0.284]
[1759174783595,0.1,212.13,212.12,4.99831265]
[1759174785476,0.1,212.13,212.12,5.70831265]
[1759174788110,0.1,212.13,212.12,0.284]
[1759174791909,0.1,212.13,212.12,5.70831265]
[1759174793993,0.1,212.13,212.12,19.30390666]
[1759174796798,0.1,212.13,212.12,0.284]
[1759174797195,0.1,212.13,212.12,4.99831265]
[1759174798212,0.1,212.13,212.12,0.284]
[1759174799292,0.81,212.13,212.12,0.284]
[1759174799487,0.1,212.13,212.12,0.284]
[1759174800092,0.1,212.13,212.12,5.70831265]
[1759174804190,0.1,212.13,212.12,19.30390666]
[1759174805804,0.1,212.13,212.12,52.62390666]
[1759174806605,0.1,212.13,212.12,19.30390666]
[1759174806905,0.1,212.13,212.12,52.62390666]
[1759174808299,0.1,212.13,212.12,18.59390666]
[1759174808509,0.1,212.13,212.12,64.29831265]
[1759174808703,0.1,212.13,212.12,65.00831265]
[1759174808923,0.1,212.13,212.12,78.60390666]
[1759174809714,0.1,212.16,212.15,39.59559401]
[1759174809916,0.1,212.16,212.15,72.89559401]
[1759174810114,0.1,212.16,212.15,73.60559401]
[1759174810317,0.1,212.16,212.15,78.31924001]
[1759174810517,0.1,212.16,212.15,78.46140158]
[1759174810923,1e-08,212.16,212.15,78.46140158]
[1759174811124,1e-08,212.17,212.16,0.14216157]
[1759174811420,0.1,212.27,212.2,0.14216157]
[1759174811722,0.1,212.27,212.25,39.59559401]
[1759174811906,0.1,212.27,212.26,46.89559401]
[1759174812109,0.1,212.27,212.26,47.60559401]
[1759174812323,0.1,212.27,212.25,26.0]
[1759174812622,0.1,212.27,212.26,33.3]
[1759174813609,0.1,212.27,212.26,47.60559401]
[1759174813817,0.1,212.27,212.26,13.59559401]
[1759174814016,0.1,212.27,212.25,30.71128031]
[1759174814219,0.1,212.27,212.26,33.3]
[1759174815118,0.78,212.27,212.24,33.3]
[1759174815322,0.1,212.27,212.24,33.3]
[1759174817014,0.1,212.27,212.25,4.7114252]
[1759174818212,0.1,212.27,212.25,5.4114252]
[1759174819628,0.1,212.27,212.26,33.3]
[1759174821406,0.1,212.27,212.23,4.71168496]
[1759174821608,0.1,212.27,212.24,13.59559401]
[1759174822024,0.1,212.27,212.25,33.3]
[1759174822522,0.1,212.27,212.25,34.0]
[1759174823938,0.1,212.27,212.26,4.71120324]
[1759174824327,0.1,212.27,212.26,5.41120324]
[1759174826139,0.1,212.27,212.26,19.29079725]
[1759174826636,0.1,212.27,212.26,33.2304065]
[1759174828341,0.1,212.27,212.26,33.584]
[1759174828517,0.1,212.27,212.26,38.29520324]
[1759174829332,0.1,212.27,212.26,38.99520324]
[1759174830318,0.1,212.27,212.26,52.59079725]
[1759174832036,0.1,212.27,212.26,51.87079725]
[1759174832619,0.1,212.27,212.26,52.57079725]
[1759174837321,0.1,212.27,212.26,78.71295882]
[1759174837519,0.1,212.27,212.26,52.71295882]
[1759174838961,0.1,212.28,212.27,13.73775558]
[1759174839139,0.1,212.35,212.3,13.73775558]
[1759174839338,0.1,212.35,212.34,39.59559401]
[1759174839528,0.1,212.35,212.34,72.87559401]
[1759174839851,0.1,212.35,212.34,78.42718385]
[1759174842346,0.1,212.36,212.35,13.73775558]
[1759174842538,1e-08,212.36,212.35,14.43775558]
[1759174843832,1e-08,212.36,212.35,47.71775558]
[1759174844031,1e-08,212.36,212.35,52.42696207]
[1759174846053,0.1,212.49,212.47,18.30214081]
[1759174846263,0.1,212.49,212.48,33.28]
[1759174846465,0.1,212.49,212.48,47.12031842]
[1759174846639,0.1,212.49,212.48,61.558074]
[1759174847858,0.1,212.49,212.48,61.538074]
[1759174848155,0.1,212.49,212.48,66.2443993]
[1759174854342,0.1,212.49,212.48,32.9843993]
[1759174854659,0.1,212.49,212.48,66.2443993]
[1759174857042,0.1,212.49,212.48,69.66738837]
[1759174858649,0.1,212.49,212.48,66.2243993]
[1759174858846,0.1,212.49,212.48,32.2843993]
[1759174859051,0.1,212.49,212.48,58.14223773]
[1759174859261,0.1,212.49,212.48,91.38223773]
[1759174859453,0.1,212.49,212.48,91.5243993]
[1759174860163,0.1,212.49,212.48,58.2843993]
[1759174860370,0.1,212.49,212.48,66.1943993]
[1759174860557,0.1,212.49,212.48,32.9543993]
[1759174860761,0.1,212.49,212.48,66.1943993]
[1759174862872,0.1,212.49,212.48,32.9543993]
[1759174863057,0.1,212.49,212.48,65.5243993]
[1759174863258,0.1,212.49,212.48,32.2843993]
[1759174863454,0.1,212.49,212.48,91.38223773]
[1759174863770,0.1,212.49,212.48,58.14223773]
[1759174863945,0.79,212.49,212.48,33.24]
[1759174864967,0.79,212.49,212.48,37.9463253]
[1759174865373,0.79,212.49,212.48,33.24]
[1759174866961,0.79,212.49,212.48,37.9463253]
[1759174867280,0.79,212.49,212.48,33.24]
[1759174867657,0.79,212.49,212.45,18.30242934]
[1759174867885,0.69,212.48,212.46,33.24]
[1759174868191,0.69,212.47,212.44,26.0]
[1759174868361,0.69,212.47,212.36,11.77205508]
[1759174868362,0.69,212.46,212.37,4.708763]
[1759174868681,0.69,212.45,212.38,47.50559401]
[1759174868858,0.69,212.45,212.39,0.67]
[1759174869057,0.69,212.47,212.42,4.70765464]
[1759174869252,0.1,212.49,212.44,0.14216157]
[1759174869557,0.1,212.49,212.47,13.59559401]
[1759174869756,0.1,212.49,212.48,33.24]
[1759174871458,0.1,212.49,212.48,52.21191931]
[1759174872670,0.1,212.49,212.48,52.35408088]
[1759174872872,1e-08,212.49,212.48,52.35408088]
[1759174874985,1e-08,212.49,212.48,19.11408088]
[1759174875395,1e-08,212.49,212.48,52.35408088]
[1759174875870,1e-08,212.49,212.48,51.68408088]
[1759174876372,1e-08,212.49,212.48,52.35408088]
[1759174877874,1e-08,212.49,212.48,52.37408088]
[1759174878501,0.69,212.6,212.52,39.59559401]
[1759174878652,0.69,212.6,212.53,33.40216157]
[1759174878852,30.70259224,212.65,212.53,33.40216157]
[1759174878853,0.69,212.59,212.53,33.40216157]
[1759174879081,0.69,212.59,212.53,0.14216157]
[1759174879262,0.69,212.59,212.55,13.59559401]
[1759174879470,30.70259224,212.65,212.57,18.2999267]
[1759174879471,0.69,212.61,212.57,18.2999267]
[1759174879779,41.38535768,212.66,212.58,33.26]
[1759174879976,0.69,212.6,212.58,33.26]
[1759174880679,0.69,212.59,212.57,33.26]
[1759174881581,0.72,212.59,212.58,4.70411139]
[1759174882277,0.72,212.6,212.58,4.70411139]
[1759174882483,0.72,212.59,212.58,37.98411139]
[1759174882990,0.72,212.59,212.58,38.26811139]
[1759174883806,0.72,212.59,212.58,0.284]
[1759174886289,5.42389011,212.59,212.58,0.284]
[1759174887383,3.42298907,212.6,212.58,0.284]
[1759174887774,0.72,212.59,212.58,0.284]
[1759174889413,38.66389011,212.59,212.58,0.284]
[1759174889701,52.96133514,212.59,212.58,0.284]
[1759174892404,55.14759429,212.59,212.58,0.284]
[1759174892792,55.00543272,212.59,212.58,0.284]
[1759174892982,40.85014926,212.59,212.58,0.284]
[1759174893182,45.55578016,212.59,212.58,0.284]
[1759174893510,40.85014926,212.59,212.58,0.284]
[1759174894098,40.13014926,212.59,212.58,0.284]
[1759174894294,40.85014926,212.59,212.58,0.284]
[1759174895804,40.99231083,212.59,212.58,0.284]
[1759174897102,54.58790484,212.59,212.58,0.284]
[1759174897280,2.18625915,212.52,212.47,0.7]
[1759174897488,2.90625915,212.52,212.47,0.7]
[1759174897782,2.18625915,212.52,212.43,13.59559401]
[1759174897986,2.18625915,212.52,212.48,0.7]
[1759174898305,6.89176037,212.52,212.48,0.7]
[1759174898603,6.89176037,212.52,212.45,5.4069787]
[1759174898823,6.89176037,212.52,212.46,0.7]
[1759174899805,6.89176037,212.52,212.46,5.40660756]
[1759174900785,2.18625915,212.49,212.42,0.7]
[1759174900987,2.18625915,212.46,212.4,0.7]
[1759174901487,2.18625915,212.45,212.4,0.7]
[1759174901687,2.18625915,212.45,212.41,0.7]
[1759174901906,2.18625915,212.45,212.42,0.7]
[1759174903012,6.89329176,212.45,212.38,13.59559401]
[1759174903200,2.18625915,212.45,212.4,0.7]
[1759174903685,2.18625915,212.45,212.41,0.7]
[1759174903889,2.18625915,212.45,212.42,0.7]
[1759174904086,2.18625915,212.45,212.4,0.7]
[1759174904401,2.18625915,212.45,212.41,0.7]
[1759174905291,7.61333556,212.45,212.39,0.7]
[1759174905490,6.89333556,212.45,212.39,0.7]
[1759174906287,6.89333556,212.45,212.39,5.40829395]
[1759174906805,6.89333556,212.45,212.39,0.7]
[1759174907012,7.61333556,212.45,212.38,14.825182]
[1759174907312,2.18625915,212.43,212.38,5.1718015]
[1759174907611,2.18625915,212.43,212.38,5.8718015]
[1759174907796,2.18625915,212.43,212.38,5.1718015]
[1759174907998,2.18625915,212.43,212.39,0.7]
[1759174908304,2.18625915,212.43,212.4,0.7]
[1759174908490,2.18625915,212.43,212.41,0.7]
[1759174909087,131.6,212.47,212.42,0.7]
[1759174909298,35.42625915,212.47,212.43,0.7]
[1759174909901,35.42625915,212.47,212.4,13.59559401]
[1759174909902,36.14625915,212.47,212.4,13.59559401]
[1759174910107,36.14625915,212.47,212.4,0.7]
[1759174910307,4.70676833,212.46,212.4,5.40798169]
[1759174910516,4.70676833,212.46,212.41,0.7]
[1759174910900,4.70676833,212.46,212.42,0.7]
[1759174911212,4.70676833,212.46,212.38,14.38806185]
[1759174911213,2.18625915,212.44,212.39,5.40831851]
[1759174911407,2.18625915,212.44,212.38,5.17181659]
[1759174912111,2.18625915,212.44,212.39,0.69]
[1759174912311,2.18625915,212.44,212.4,0.69]
[1759174912693,2.18625915,212.41,212.38,5.17181659]
[1759174913205,2.18625915,212.44,212.39,0.69]
[1759174913404,2.18625915,212.44,212.38,5.17181659]
[1759174913605,2.88625915,212.44,212.39,0.69]
[1759174913996,2.18625915,212.44,212.4,0.69]
[1759174914294,6.89356456,212.44,212.38,5.86181659]
[1759174914695,7.59356456,212.44,212.38,1.1533]
[1759174915010,2.18625915,212.41,212.38,0.4633]
[1759174915198,2.18625915,212.41,212.38,5.171802]
[1759174915516,2.18625915,212.41,212.38,5.861802]
[1759174916600,131.6,212.44,212.38,5.171802]
[1759174916807,2.18625915,212.43,212.39,0.69]
[1759174917514,2.18625915,212.43,212.4,0.69]
[1759174919018,2.18625915,212.43,212.4,5.3980912]
[1759174920214,2.18625915,212.43,212.4,4.7080912]
[1759174920922,2.18625915,212.43,212.41,0.69]
[1759174921225,2.18625915,212.43,212.42,0.69]
[1759174921421,131.6,212.44,212.42,0.69]
[1759174921918,131.6,212.44,212.4,0.69]
[1759174922221,131.6,212.44,212.41,5.3976639]
[1759174922817,131.6,212.44,212.42,0.69]
[1759174923025,131.6,212.44,212.41,4.7076639]
[1759174923206,131.6,212.44,212.41,5.3976639]
[1759174923534,131.6,212.44,212.41,0.69]
[1759174923695,131.6,212.44,212.42,0.69]
[1759174924019,2.18625915,212.5,212.43,0.69]
[1759174924197,2.18625915,212.53,212.44,4.70721144]
[1759174924396,2.18625915,212.53,212.46,13.59559401]
[1759174924623,14.15929203,212.55,212.48,13.59559401]
[1759174924823,6.89055973,212.58,212.49,0.69]
[1759174925014,33.26,212.57,212.49,0.69]
[1759174925801,33.26,212.57,212.5,4.70588235]
[1759174926239,33.26,212.57,212.51,0.69]
[1759174928125,33.26,212.57,212.52,4.70543948]
[1759174928325,33.26,212.57,212.53,0.69]
[1759174928627,33.26,212.57,212.52,4.70543948]
[1759174928830,33.26,212.57,212.53,0.69]
[1759174929411,33.26,212.57,212.52,4.70543948]
[1759174929623,33.26,212.57,212.52,5.39543948]
[1759174929822,33.26,212.57,212.52,4.70543948]
[1759174930125,133.78625915,212.61,212.53,1.1533]
[1759174930303,33.24,212.6,212.54,0.69]
[1759174930715,2.18625915,212.61,212.54,0.69]
[1759174931026,7.58971013,212.61,212.54,0.69]
[1759174931929,5.40345098,212.61,212.54,0.69]
[1759174932230,2.18625915,212.6,212.55,4.70477534]
[1759174932426,2.88625915,212.6,212.55,4.70477534]
[1759174932632,2.88625915,212.6,212.55,5.39477534]
[1759174934129,0.7,212.59,212.54,4.7049967]
[1759174934329,0.7,212.59,212.54,5.3849967]
[1759174934532,2.18625915,212.6,212.55,0.68]
[1759174934714,2.89625915,212.6,212.55,0.68]
[1759174935115,35.42625915,212.62,212.56,0.68]
[1759174936219,2.18625915,212.62,212.57,4.70433269]
[1759174936422,35.42625915,212.65,212.58,0.68]
[1759174937229,0.81,212.71,212.6,26.0]
[1759174937445,2.99625915,212.71,212.61,14.27559401]
[1759174937629,2.99625915,212.71,212.63,13.59559401]
[1759174937835,2.99625915,212.71,212.64,0.68]
[1759174938225,7.69750347,212.71,212.64,0.68]
[1759174938438,2.99625915,212.71,212.64,5.38270091]
[1759174939138,5.5112557,212.71,212.64,5.38270091]
[1759174939327,7.69751485,212.71,212.64,5.38270091]
[1759174939526,2.18625915,212.68,212.59,0.68]
[1759174939726,0.71,212.67,212.59,0.68]
[1759174939927,2.18625915,212.65,212.59,0.68]
[1759174942037,2.18625915,212.65,212.6,4.70366886]
[1759174942344,2.18625915,212.65,212.61,0.72]
[1759174942542,2.18625915,212.65,212.62,0.72]
[1759174943416,2.18625915,212.65,212.63,0.72]
[1759174943634,2.18625915,212.65,212.62,4.7030739]
[1759174943924,2.18625915,212.65,212.63,0.72]
[1759174944425,38.63195588,212.68,212.63,5.4229908]
[1759174944619,2.18625915,212.67,212.63,4.7029908]
[1759174944830,2.18625915,212.67,212.63,5.4229908]
[1759174945147,2.87625915,212.67,212.61,0.72]
[1759174946150,2.87625915,212.67,212.61,5.42331962]
[1759174946623,0.69,212.67,212.61,5.42331962]
[1759174946828,2.18625915,212.67,212.62,0.72]
[1759174947029,2.18625915,212.67,212.63,0.72]
[1759174947322,2.18625915,212.67,212.61,16.46193868]
[1759174947536,2.18625915,212.67,212.62,0.72]
[1759174948234,33.24,212.68,212.62,0.72]
[1759174948547,133.78625915,212.7,212.63,4.70300522]
[1759174948736,133.78625915,212.7,212.64,0.72]
[1759174948931,138.48771676,212.7,212.64,0.72]
[1759174949151,0.69,212.69,212.62,4.70322326]
[1759174949335,0.69,212.69,212.62,5.42322326]
[1759174950218,4.70189956,212.68,212.62,5.42322326]
[1759174951243,4.70189956,212.68,212.62,5.88652326]
[1759174953250,2.87625915,212.67,212.62,0.4633]
[1759174953452,2.18625915,212.67,212.62,0.4633]
[1759174953832,2.87625915,212.67,212.62,1.1833]
[1759174954233,0.69,212.67,212.62,1.1833]
[1759174954553,3.41174477,212.68,212.62,1.1833]
[1759174954554,3.41174477,212.68,212.62,0.4633]
[1759174954735,4.10174477,212.68,212.62,0.4633]
[1759174955452,4.70212065,212.67,212.62,5.16652182]
[1759174955641,5.39212065,212.67,212.62,5.88652182]
[1759174956237,5.39212065,212.67,212.62,1.1833]
[1759174956440,8.11386542,212.67,212.62,0.4633]
[1759174956644,3.41174477,212.67,212.63,0.72]
[1759174957555,0.69,212.66,212.62,0.4633]
[1759174957737,0.69,212.65,212.62,0.4633]
[1759174959456,5.3926663,212.65,212.62,0.4633]
[1759174961158,3.41174477,212.64,212.62,0.4633]
[1759174961342,4.70300522,212.63,212.62,0.4633]
[1759174961536,5.39300522,212.63,212.62,0.4633]
[1759174962437,140.54691156,212.63,212.62,0.4633]
[1759174964753,137.13516679,212.63,212.62,0.4633]
[1759174964959,136.99300522,212.63,212.62,0.4633]
[1759174965156,173.62474999,212.63,212.62,0.4633]
[1759174965662,172.93474999,212.63,212.62,0.4633]
[1759174967058,173.62474999,212.63,212.62,0.4633]
[1759174968569,177.03649476,212.63,212.62,0.4633]
[1759174969450,45.43649476,212.63,212.62,0.4633]
[1759174969847,41.33474999,212.63,212.62,0.4633]
[1759174970047,8.11474999,212.63,212.62,0.4633]
[1759174970263,41.33474999,212.63,212.62,0.4633]
[1759174972467,45.60865633,212.63,212.62,0.4633]
[1759174972764,48.77599941,212.63,212.62,0.4633]
[1759174973448,45.60865633,212.63,212.62,0.4633]
[1759174973957,41.47691156,212.63,212.62,0.4633]
[1759174975158,41.33474999,212.63,212.62,0.4633]
[1759174976472,8.83474999,212.63,212.62,0.4633]
[1759174976666,42.05474999,212.63,212.62,0.4633]
[1759174976849,45.46649476,212.63,212.62,0.4633]
[1759174977264,41.33474999,212.63,212.62,0.4633]
[1759174981856,36.63174477,212.63,212.62,1.1633]
[1759174982864,36.63174477,212.63,212.62,0.4633]
[1759174983065,41.33474999,212.63,212.62,0.4633]
[1759174984980,42.19691156,212.63,212.62,0.4633]
[1759174985282,26.0,212.6,212.53,0.7]
[1759174985479,3.41174477,212.55,212.53,0.7]
[1759174985665,3.41174477,212.55,212.54,0.7]
[1759174985978,36.63174477,212.55,212.54,0.7]
[1759174987079,8.11652011,212.55,212.49,4.70606829]
[1759174987280,8.11652011,212.55,212.5,0.7]
[1759174988276,8.11652011,212.55,212.51,4.70566091]
[1759174988277,3.41174477,212.55,212.51,4.70566091]
[1759174988471,3.41174477,212.55,212.52,0.7]
[1759174990285,3.41174477,212.55,212.52,5.40528837]
[1759174990475,3.41174477,212.55,212.53,0.7]
[1759174990984,3.41174477,212.58,212.53,0.7]
[1759174992065,3.41174477,212.58,212.53,5.40504956]
[1759174992389,3.41174477,212.58,212.54,0.7]
[1759174992390,8.11587446,212.58,212.54,0.7]
[1759174993096,8.11587446,212.58,212.55,0.7]
[1759174993676,8.11587446,212.58,212.56,0.7]
[1759174994779,3.41174477,212.58,212.56,0.71]
[1759174994980,3.41174477,212.58,212.57,0.71]
[1759174995584,3.41174477,212.59,212.57,0.71]
[1759174995775,3.41174477,212.59,212.57,5.41418859]
[1759174995976,3.41174477,212.59,212.58,0.71]
[1759174997767,131.6,212.62,212.58,0.71]
[1759174998170,131.6,212.62,212.52,26.0]
[1759174998171,3.41174477,212.6,212.55,4.70457878]
[1759174998392,3.41174477,212.6,212.56,0.71]
[1759174998596,3.41174477,212.6,212.57,0.71]
[1759174998792,3.41174477,212.6,212.51,13.59559401]
[1759174998971,3.41174477,212.6,212.54,0.71]
[1759174999895,3.41174477,212.6,212.55,4.70477534]
[1759175000197,3.41174477,212.6,212.56,0.71]
[1759175000378,3.41174477,212.6,212.57,0.71]
[1759175000572,3.41174477,212.6,212.58,0.71]
[1759175001071,8.11546064,212.6,212.56,0.71]
[1759175001467,8.11546064,212.6,212.53,4.70521808]
[1759175001672,42.03546064,212.6,212.54,0.69]
[1759175002278,53.79463279,212.6,212.54,0.69]
[1759175003497,42.03546064,212.6,212.54,5.39496357]
[1759175003701,41.31546064,212.6,212.54,5.39496357]
[1759175004005,42.03546064,212.6,212.54,0.69]
[1759175005295,3.41174477,212.57,212.54,0.69]
[1759175007687,3.41174477,212.57,212.52,5.39543948]
[1759175008000,3.41174477,212.57,212.53,0.69]
[1759175008206,3.41174477,212.57,212.54,0.69]
[1759175009699,3.41174477,212.57,212.51,13.59559401]
[1759175009903,3.41174477,212.57,212.54,0.69]
[1759175010384,3.41174477,212.57,212.55,0.69]
[1759175010581,3.41174477,212.57,212.52,16.4690382]
[1759175010890,3.41174477,212.57,212.53,0.69]
[1759175011494,3.41174477,212.57,212.54,4.7049967]
[1759175011710,3.41174477,212.57,212.54,5.3949967]
[1759175012012,3.41174477,212.57,212.55,0.69]
[1759175012204,3.41174477,212.58,212.55,0.69]
[1759175012402,0.72,212.57,212.52,4.70524715]
[1759175012593,3.41174477,212.58,212.53,0.69]
[1759175012909,3.41174477,212.58,212.54,0.69]
[1759175013490,3.41174477,212.58,212.55,0.69]
[1759175014493,3.41174477,212.58,212.52,5.39524715]
[1759175014692,8.83586233,212.58,212.52,0.69]
[1759175015606,3.41174477,212.53,212.49,13.81138245]
[1759175015806,4.13174477,212.53,212.47,0.69]
[1759175016282,2.18688451,212.51,212.47,5.39654366]
[1759175016604,33.2,212.56,212.48,14.28559401]
[1759175016809,35.38688451,212.56,212.5,13.59559401]
[1759175016999,35.38688451,212.56,212.51,0.69]
[1759175017198,35.38688451,212.56,212.52,0.69]
[1759175018584,40.81147624,212.56,212.51,4.70547517]
[1759175018810,40.81147624,212.56,212.5,18.30144778]
[1759175019005,40.09147624,212.56,212.52,0.69]
[1759175019200,0.72,212.55,212.5,4.70585377]
[1759175019407,40.09147624,212.56,212.5,4.70585377]
[1759175019408,0.72,212.54,212.5,4.70585377]
[1759175019886,2.18688451,212.57,212.51,0.69]
[1759175020290,2.18688451,212.57,212.52,4.70543948]
[1759175020600,2.18688451,212.57,212.53,0.69]
[1759175022023,0.72,212.56,212.52,4.70543948]
[1759175022325,2.90688451,212.57,212.52,5.39543948]
[1759175022912,2.18688451,212.57,212.53,0.69]
[1759175024808,2.18688451,212.57,212.53,4.70509964]
[1759175025999,2.18688451,212.57,212.53,4.70509964]
[1759175026198,2.18688451,212.57,212.54,0.69]
[1759175027018,0.72,212.59,212.55,0.69]
[1759175027019,2.18688451,212.59,212.55,0.69]
[1759175028020,2.18688451,212.59,212.56,0.69]
[1759175028206,2.18688451,212.59,212.52,16.46900885]
[1759175028414,2.18688451,212.59,212.53,14.28559401]
[1759175029220,2.18688451,212.59,212.54,4.7049967]
[1759175029416,2.18688451,212.59,212.55,0.69]
[1759175030204,2.90688451,212.59,212.54,4.7049967]
[1759175030414,2.90688451,212.59,212.54,5.3949967]
[1759175030716,0.72,212.58,212.53,18.30077419]
[1759175031016,0.72,212.58,212.53,18.99077419]
[1759175031406,2.18688451,212.56,212.51,0.68]
[1759175031716,2.18688451,212.56,212.52,0.68]
[1759175032104,0.65,212.55,212.5,4.70588235]
[1759175032303,0.65,212.55,212.5,5.38588235]
[1759175033023,0.65,212.55,212.5,4.70588235]
[1759175033201,0.65,212.55,212.5,5.38588235]
[1759175033523,5.35487382,212.55,212.5,5.38588235]
[1759175034019,4.70487382,212.55,212.5,4.70588235]
[1759175034226,0.65,212.54,212.49,13.89558239]
[1759175034520,2.18688451,212.53,212.48,13.59559401]
[1759175034707,14.70487382,212.55,212.5,0.68]
[1759175034907,2.18688451,212.53,212.49,4.70601439]
[1759175035212,2.18688451,212.53,212.5,0.68]
[1759175035530,2.18688451,212.53,212.51,0.68]
[1759175036121,2.18688451,212.53,212.49,4.70601439]
[1759175036313,2.18688451,212.53,212.5,0.68]
[1759175036514,2.18688451,212.53,212.51,0.68]
[1759175036914,2.18688451,212.53,212.49,19.19598261]
[1759175037214,2.18688451,212.53,212.5,0.68]
[1759175037797,2.18688451,212.53,212.51,0.68]
[1759175038016,2.18688451,212.53,212.52,0.68]
[1759175039231,2.18688451,212.53,212.52,5.38543948]
[1759175040427,10.0,212.55,212.52,5.38543948]
[1759175040631,10.0,212.55,212.53,0.68]
[1759175041006,10.0,212.55,212.54,0.68]
[1759175041429,10.0,212.55,212.54,5.3849967]
[1759175042325,5.35370212,212.6,212.54,5.3849967]
[1759175042326,133.78688451,212.65,212.55,13.59559401]
[1759175042512,2.18688451,212.66,212.57,13.59559401]
[1759175042707,2.18688451,212.66,212.59,13.59559401]
[1759175042913,2.18688451,212.66,212.6,0.68]
[1759175043350,14.24727311,212.71,212.62,16.46129244]
[1759175043351,3.17380565,212.7,212.62,16.46129244]
[1759175043652,0.1,212.71,212.62,16.46129244]
[1759175043653,0.1,212.71,212.63,14.27559401]
[1759175043807,2.18688451,212.69,212.62,4.70322641]
[1759175044008,0.65,212.68,212.62,4.70322641]
[1759175044209,0.1,212.71,212.63,0.68]
[1759175044411,2.18688451,212.69,212.63,0.68]
[1759175045055,2.18688451,212.66,212.59,0.68]
[1759175045227,0.65,212.65,212.59,0.68]
[1759175045422,0.65,212.65,212.57,4.70431113]
[1759175045423,2.18688451,212.63,212.57,4.70431113]
[1759175045625,2.83688451,212.63,212.56,26.68]
[1759175045829,2.83688451,212.63,212.56,0.68]
[1759175046144,2.83688451,212.63,212.56,26.68]
[1759175046346,2.18688451,212.63,212.57,0.68]
[1759175047330,2.18688451,212.63,212.58,16.46438987]